bitfinex/quotes_BTCUSD_20220303
["timestamp","ask_amount","ask_price","bid_price","bid_amount"]
[1646310056768,1.54059201,43563.0,43562.0,0.27961094]
[1646310056974,1.59026902,43563.0,43562.0,0.27961094]
[1646310057569,1.94433702,43563.0,43562.0,0.27961094]
[1646310057768,1.68697304,43563.0,43562.0,0.27961094]
[1646310058169,1.68497304,43563.0,43562.0,0.27961094]
[1646310058368,1.90984608,43563.0,43562.0,0.27961094]
[1646310059168,1.91384608,43563.0,43562.0,0.27961094]
[1646310060174,1.90984608,43563.0,43562.0,0.27961094]
[1646310060369,1.90984608,43563.0,43562.0,0.215134]
[1646310060612,1.89918969,43563.0,43562.0,0.215134]
[1646310062012,1.89918969,43563.0,43562.0,0.06326437]
[1646310062218,1.204068,43562.0,43561.0,0.00121257]
[1646310062414,1.84410459,43562.0,43561.0,0.00121257]
[1646310062618,2.00730075,43562.0,43561.0,0.00121257]
[1646310062815,2.384134,43562.0,43561.0,0.00121257]
[1646310063016,2.384134,43562.0,43561.0,2.57e-06]
[1646310063017,2.47162364,43562.0,43561.0,2.57e-06]
[1646310063214,2.47562364,43562.0,43561.0,2.57e-06]
[1646310063417,2.63834166,43562.0,43544.0,0.0011]
[1646310063721,2.63834166,43562.0,43537.0,0.0011]
[1646310063722,0.23878401,43547.0,43537.0,0.0011]
[1646310064016,0.59285201,43543.0,43537.0,0.0011]
[1646310064284,0.60303278,43543.0,43537.0,0.0011]
[1646310064488,0.77034438,43543.0,43537.0,0.0011]
[1646310064686,0.23878401,43542.0,43537.0,0.0011]
[1646310064887,0.354068,43541.0,43532.0,0.00069499]
[1646310066090,0.354068,43541.0,43534.0,0.26776069]
[1646310066691,0.50547917,43545.0,43535.0,0.05766518]
[1646310066692,0.354068,43544.0,43535.0,0.05766518]
[1646310066891,0.15175616,43546.0,43535.0,0.05766518]
[1646310067091,0.354068,43545.0,43535.0,0.05766518]
[1646310067292,0.354068,43545.0,43536.0,0.00011027]
[1646310067690,0.55487402,43545.0,43536.0,0.00011027]
[1646310068119,0.354068,43544.0,43536.0,0.16596696]
[1646310068317,0.32620393,43547.0,43536.0,0.16585669]
[1646310068518,0.354068,43546.0,43536.0,0.16606555]
[1646310069520,0.354068,43546.0,43536.0,0.16585669]
[1646310069719,0.354068,43546.0,43536.0,0.16606555]
[1646310069920,0.354068,43546.0,43538.0,0.05766518]
[1646310070121,0.03480871,43547.0,43538.0,0.05766518]
[1646310070921,0.354068,43546.0,43538.0,0.05766518]
[1646310071522,0.03480871,43547.0,43536.0,0.16606487]
[1646310071523,0.01325904,43544.0,43539.0,0.05766518]
[1646310071775,0.01264246,43542.0,43539.0,0.05766518]
[1646310071977,0.01264246,43542.0,43536.0,0.16606487]
[1646310072178,0.01326387,43541.0,43538.0,0.05766518]
[1646310072378,0.01260043,43540.0,43536.0,0.16606487]
[1646310072576,0.01397573,43539.0,43536.0,0.00020818]
[1646310072776,0.01346541,43538.0,43536.0,0.00020818]
[1646310073081,0.15753681,43541.0,43535.0,0.05766518]
[1646310073277,0.18410295,43546.0,43535.0,0.05787335]
[1646310073476,0.057462,43543.0,43535.0,0.05787335]
[1646310074176,0.27723511,43543.0,43535.0,0.05766518]
[1646310074375,0.057462,43543.0,43536.0,0.00020822]
[1646310075178,0.287462,43543.0,43536.0,0.00020822]
[1646310075379,0.30271235,43543.0,43533.0,0.27091044]
[1646310075612,0.30271235,43543.0,43536.0,0.00020822]
[1646310075810,0.287462,43543.0,43536.0,0.00020822]
[1646310076211,0.287462,43543.0,43538.0,0.21585293]
[1646310076412,0.23,43543.0,43538.0,0.21585293]
[1646310077013,0.23,43543.0,43539.0,0.37253458]
[1646310077215,0.23,43543.0,43542.0,0.19285673]
[1646310077414,0.23,43543.0,43542.0,0.60518791]
[1646310077813,0.23,43543.0,43542.0,0.25052191]
[1646310078013,0.15175616,43553.0,43545.0,0.25168518]
[1646310078216,0.057448,43553.0,43545.0,0.30935036]
[1646310078613,0.057448,43553.0,43545.0,0.25168518]
[1646310079283,0.057448,43553.0,43545.0,0.30935036]
[1646310080382,0.411516,43553.0,43552.0,0.2134196]
[1646310080583,0.411516,43553.0,43549.0,0.22640853]
[1646310080584,0.057448,43553.0,43549.0,0.22640853]
[1646310080983,0.061448,43553.0,43549.0,0.22640853]
[1646310081985,0.061448,43553.0,43549.0,0.05766518]
[1646310082384,0.057448,43553.0,43549.0,0.05766518]
[1646310082786,0.057448,43553.0,43545.0,0.25168518]
[1646310083024,0.058448,43553.0,43546.0,0.05766518]
[1646310083225,0.01327394,43552.0,43545.0,0.25168518]
[1646310083428,0.01327394,43552.0,43549.0,0.05766518]
[1646310084224,0.01327394,43552.0,43551.0,0.24860009]
[1646310084524,0.01327394,43552.0,43549.0,0.05766518]
[1646310084727,0.01327394,43552.0,43550.0,0.9098767]
[1646310084928,0.23,43552.0,43551.0,0.3144554]
[1646310085125,0.23,43552.0,43551.0,0.7152214]
[1646310085526,0.23,43552.0,43551.0,0.94354099]
[1646310087268,0.23,43552.0,43551.0,0.62908559]
[1646310088769,0.23,43552.0,43551.0,0.400766]
[1646310088967,0.23,43552.0,43551.0,0.40349589]
[1646310089269,0.23,43552.0,43551.0,0.04882989]
[1646310089569,0.23,43552.0,43551.0,0.00272989]
[1646310090630,0.40857587,43552.0,43551.0,0.00272989]
[1646310091630,0.95340859,43552.0,43551.0,0.00272989]
[1646310092729,0.98719961,43552.0,43551.0,0.00272989]
[1646310093130,0.81362374,43552.0,43551.0,0.00272989]
[1646310093329,0.26879102,43552.0,43551.0,0.00272989]
[1646310093531,0.62285902,43552.0,43551.0,0.00272989]
[1646310093934,0.45964786,43552.0,43551.0,0.00272989]
[1646310094270,0.62285902,43552.0,43551.0,0.00272989]
[1646310094471,0.61785902,43552.0,43551.0,0.00272989]
[1646310095072,0.62085902,43552.0,43551.0,0.00272989]
[1646310095472,0.26679102,43552.0,43551.0,0.00272989]
[1646310096079,0.62085902,43552.0,43551.0,0.00272989]
[1646310096274,0.61785902,43552.0,43551.0,0.00272989]
[1646310097076,0.62085902,43552.0,43551.0,0.00272989]
[1646310097777,0.62085902,43552.0,43551.0,0.00244466]
[1646310098427,0.61785902,43552.0,43551.0,0.00244466]
[1646310099027,0.86064303,43552.0,43551.0,0.00244466]
[1646310099228,0.62185902,43552.0,43551.0,0.00244466]
[1646310100029,0.50649042,43552.0,43551.0,0.00244466]
[1646310100531,0.50649042,43552.0,43551.0,0.00099716]
[1646310100729,0.86055842,43552.0,43551.0,0.00099716]
[1646310100935,0.85655842,43552.0,43551.0,0.00099716]
[1646310101132,0.50249042,43552.0,43551.0,0.00099716]
[1646310101331,0.26379102,43552.0,43551.0,0.00099716]
[1646310102791,0.61785902,43552.0,43551.0,0.00099716]
[1646310102994,1.21897732,43552.0,43551.0,0.00099716]
[1646310103191,0.90452192,43552.0,43551.0,0.00099716]
[1646310103391,0.61785902,43552.0,43551.0,0.00099716]
[1646310103794,0.61785902,43552.0,43545.0,0.25168518]
[1646310103991,0.19104102,43546.0,43545.0,0.25168518]
[1646310104593,0.34401853,43550.0,43545.0,0.25168518]
[1646310104594,0.23880128,43547.0,43545.0,0.25168518]
[1646310104791,0.23880128,43546.0,43545.0,0.25168518]
[1646310105192,0.62799285,43546.0,43545.0,0.25168518]
[1646310105826,0.40368667,43546.0,43545.0,0.25168518]
[1646310106027,0.63368667,43546.0,43545.0,0.25168518]
[1646310106224,0.98775467,43546.0,43545.0,0.25168518]
[1646310106426,0.98675467,43546.0,43545.0,0.25168518]
[1646310106824,0.82286928,43546.0,43545.0,0.25168518]
[1646310107227,1.13932468,43546.0,43545.0,0.25168518]
[1646310107625,0.78525668,43546.0,43545.0,0.25168518]
[1646310108028,0.67259662,43546.0,43545.0,0.2574262]
[1646310108226,0.586068,43546.0,43545.0,0.2574262]
[1646310108427,0.82288464,43546.0,43545.0,0.2574262]
[1646310108628,0.97088581,43546.0,43545.0,0.2574262]
[1646310108828,1.25744734,43546.0,43545.0,0.2574262]
[1646310109029,1.18508493,43546.0,43545.0,0.2574262]
[1646310109278,1.38004755,43546.0,43545.0,0.2574262]
[1646310109483,0.87262953,43546.0,43545.0,0.2574262]
[1646310109881,0.51856153,43546.0,43545.0,0.2574262]
[1646310110080,0.232,43546.0,43545.0,0.2574262]
[1646310110481,0.23,43546.0,43545.0,0.2574262]
[1646310112784,0.584068,43546.0,43545.0,0.2574262]
[1646310113216,0.235,43546.0,43545.0,0.2574262]
[1646310113420,0.589068,43546.0,43545.0,0.2574262]
[1646310114419,0.235,43546.0,43545.0,0.2574262]
[1646310116976,0.23,43546.0,43545.0,0.2574262]
[1646310117176,0.23,43546.0,43545.0,0.2584262]
[1646310118378,0.23,43546.0,43545.0,0.2574262]
[1646310118778,0.87062953,43546.0,43545.0,0.2574262]
[1646310119181,0.87362953,43546.0,43545.0,0.2574262]
[1646310119382,0.587068,43546.0,43545.0,0.2574262]
[1646310119578,0.51956153,43546.0,43545.0,0.2574262]
[1646310120378,0.233,43546.0,43545.0,0.2574262]
[1646310120617,0.23,43546.0,43545.0,0.25168518]
[1646310121220,0.23,43546.0,43545.0,0.25268518]
[1646310121618,0.23,43546.0,43545.0,0.24730418]
[1646310122419,0.23,43546.0,43545.0,0.24630418]
[1646310123019,0.46882395,43546.0,43545.0,0.24630418]
[1646310123219,0.46982395,43546.0,43545.0,0.24630418]
[1646310123622,0.231,43546.0,43545.0,0.24630418]
[1646310124490,0.23,43546.0,43545.0,0.24630418]
[1646310125091,0.234,43546.0,43545.0,0.24630418]
[1646310125292,0.47283179,43546.0,43545.0,0.65863536]
[1646310125492,0.4250543,43546.0,43545.0,0.97105835]
[1646310125892,0.4250543,43546.0,43545.0,0.8791042]
[1646310126493,0.23782401,43546.0,43545.0,0.93161456]
[1646310126696,0.18323029,43548.0,43546.0,1.02301]
[1646310126900,0.18323029,43548.0,43547.0,0.73784292]
[1646310126901,0.14013029,43548.0,43547.0,0.73784292]
[1646310127398,0.15294341,43554.0,43547.0,0.73784292]
[1646310127595,0.23883179,43555.0,43554.0,0.5622826]
[1646310127797,0.23883179,43555.0,43554.0,0.82892467]
[1646310128022,0.23883179,43556.0,43554.0,0.82892467]
[1646310128228,0.23883179,43558.0,43555.0,0.66873292]
[1646310128426,0.23883179,43558.0,43557.0,0.41233118]
[1646310128631,0.15294341,43559.0,43557.0,0.7724981]
[1646310128632,0.23883179,43559.0,43557.0,0.7724981]
[1646310128824,0.48816246,43564.0,43559.0,0.354666]
[1646310128825,0.23883179,43560.0,43559.0,0.354666]
[1646310129024,0.28656153,43563.0,43559.0,0.71122066]
[1646310129025,0.23883179,43561.0,43559.0,0.71122066]
[1646310129224,0.23883179,43562.0,43561.0,0.354666]
[1646310129424,0.23883179,43562.0,43561.0,0.94021018]
[1646310129624,0.23883179,43562.0,43561.0,0.99787536]
[1646310129826,0.23883179,43562.0,43561.0,0.51094154]
[1646310130128,0.23883179,43562.0,43561.0,0.72995793]
[1646310130927,0.23883179,43562.0,43561.0,0.51094154]
[1646310131327,0.28656153,43563.0,43561.0,0.51094154]
[1646310131527,0.28656153,43563.0,43561.0,0.45843118]
[1646310133369,0.28656153,43563.0,43561.0,0.10376518]
[1646310133768,0.28656153,43562.0,43561.0,0.0461]
[1646310134770,0.28656153,43563.0,43561.0,0.0461]
[1646310134971,0.01203655,43562.0,43561.0,0.0461]
[1646310135172,0.01203655,43562.0,43561.0,0.402766]
[1646310135819,0.01203655,43562.0,43561.0,0.46043118]
[1646310136025,0.28656153,43563.0,43561.0,0.46043118]
[1646310136026,0.28656153,43564.0,43561.0,0.46043118]
[1646310136321,0.23862607,43562.0,43561.0,0.46043118]
[1646310136725,0.23862607,43562.0,43561.0,0.41433118]
[1646310137123,0.23862607,43562.0,43561.0,0.41233118]
[1646310137322,0.28656153,43564.0,43561.0,0.002]
[1646310137622,0.28656153,43564.0,43561.0,0.356666]
[1646310137623,0.23861745,43562.0,43561.0,0.356666]
[1646310138224,0.28656153,43564.0,43561.0,0.356666]
[1646310138424,0.23861159,43562.0,43561.0,0.002]
[1646310138625,0.23860709,43563.0,43561.0,0.354666]
[1646310139270,0.23960709,43563.0,43561.0,0.354666]
[1646310139471,0.23960709,43563.0,43562.0,0.25304322]
[1646310139673,0.23960709,43563.0,43562.0,0.354666]
[1646310139872,0.001,43563.0,43562.0,0.354666]
[1646310140273,0.001,43563.0,43562.0,0.66512066]
[1646310140470,0.23860709,43567.0,43562.0,0.66512066]
[1646310140674,0.23860709,43566.0,43563.0,0.06709984]
[1646310140871,0.23860709,43566.0,43563.0,0.2910572]
[1646310141070,0.23860709,43566.0,43565.0,0.05766518]
[1646310141774,0.17301464,43569.0,43558.0,0.002]
[1646310141775,0.28656153,43567.0,43558.0,0.002]
[1646310141970,0.29599053,43565.0,43563.0,0.05766518]
[1646310144237,0.23855853,43566.0,43564.0,0.354691]
[1646310144436,0.23855853,43565.0,43564.0,0.354691]
[1646310144635,0.23855853,43565.0,43563.0,0.05766518]
[1646310144839,0.23855853,43564.0,43563.0,0.05766518]
[1646310145035,0.23855853,43564.0,43560.0,0.05766518]
[1646310145235,0.23855853,43564.0,43561.0,0.354691]
[1646310146036,0.23855853,43565.0,43561.0,0.354691]
[1646310146236,0.0103489,43563.0,43561.0,0.354691]
[1646310147268,0.0103489,43563.0,43561.0,0.357691]
[1646310147869,0.75042096,43564.0,43561.0,0.357691]
[1646310148069,0.73855853,43564.0,43561.0,0.357691]
[1646310148372,0.0132017,43562.0,43561.0,0.357691]
[1646310148569,0.73855853,43564.0,43561.0,0.354691]
[1646310149369,0.73855853,43564.0,43561.0,0.356691]
[1646310150620,0.73855853,43564.0,43561.0,0.354691]
[1646310151022,0.91465116,43564.0,43561.0,0.354691]
[1646310151219,0.91465116,43564.0,43561.0,0.356691]
[1646310151621,0.67609263,43564.0,43561.0,0.356691]
[1646310151823,0.19081854,43562.0,43561.0,0.356691]
[1646310152621,0.19081854,43562.0,43561.0,0.354691]
[1646310154123,0.19081854,43563.0,43561.0,0.66646576]
[1646310154372,0.19081854,43563.0,43562.0,0.31177476]
[1646310154573,0.69081854,43564.0,43562.0,0.71256576]
[1646310154774,0.69081854,43564.0,43563.0,0.72413094]
[1646310154975,0.5,43564.0,43563.0,0.77023094]
[1646310155872,0.5,43564.0,43563.0,0.8227413]
[1646310157274,0.5,43564.0,43563.0,0.8257413]
[1646310158732,0.5,43564.0,43563.0,0.8227413]
[1646310158928,0.5,43564.0,43563.0,0.45845618]
[1646310159336,0.5,43564.0,43563.0,0.46145618]
[1646310160533,0.5,43564.0,43563.0,0.45845618]
[1646310160730,0.5,43564.0,43563.0,0.29989337]
[1646310162776,0.6908429,43564.0,43563.0,0.29989337]
[1646310162976,0.6908429,43564.0,43563.0,0.25379337]
[1646310163277,0.66162128,43564.0,43563.0,0.25379337]
[1646310163576,0.90012646,43564.0,43563.0,0.25379337]
[1646310163774,0.90012646,43564.0,43563.0,0.19612819]
[1646310164776,0.66162128,43564.0,43563.0,0.19612819]
[1646310165376,0.66162128,43564.0,43563.0,0.19812819]
[1646310165626,0.94782749,43564.0,43563.0,0.19812819]
[1646310167232,0.94782749,43564.0,43563.0,0.354691]
[1646310167429,0.66162128,43564.0,43563.0,0.355691]
[1646310167829,0.94782749,43564.0,43563.0,0.355691]
[1646310169133,0.94782749,43564.0,43563.0,0.354691]
[1646310169374,0.94782749,43564.0,43563.0,0.001]
[1646310169976,0.99552853,43564.0,43563.0,0.001]
[1646310170176,0.99552853,43564.0,43563.0,0.355702]
[1646310170376,0.83390725,43564.0,43563.0,0.355702]
[1646310170576,0.5,43564.0,43563.0,0.354702]
[1646310171377,0.5,43564.0,43563.0,0.355702]
[1646310171977,0.83390725,43564.0,43563.0,0.355702]
[1646310173024,0.5,43564.0,43563.0,0.355702]
[1646310173225,0.5,43564.0,43563.0,0.356702]
[1646310174624,0.5,43564.0,43563.0,0.354702]
[1646310175426,0.5,43564.0,43563.0,0.356702]
[1646310175827,0.5,43564.0,43563.0,0.66850344]
[1646310176029,0.5,43564.0,43563.0,0.71460344]
[1646310176877,0.5,43564.0,43563.0,0.2871668]
[1646310177080,0.5,43564.0,43563.0,0.19525955]
[1646310177279,0.4031,43564.0,43563.0,0.58354337]
[1646310177482,0.2387576,43568.0,43563.0,0.27277991]
[1646310177677,0.2387576,43568.0,43567.0,0.05766518]
[1646310177879,0.05,43579.0,43567.0,0.66097754]
[1646310177880,0.2387576,43569.0,43567.0,0.66097754]
[1646310178079,0.2387576,43570.0,43568.0,0.05251036]
[1646310178283,0.2387576,43570.0,43569.0,0.43475936]
[1646310178482,0.23895304,43571.0,43569.0,0.43475936]
[1646310178679,0.2387576,43572.0,43570.0,0.05251036]
[1646310178880,0.2387576,43573.0,43572.0,0.24502491]
[1646310179081,0.2287576,43573.0,43572.0,0.68491309]
[1646310180081,0.28653849,43575.0,43573.0,0.354649]
[1646310180280,0.28653849,43575.0,43572.0,0.34879009]
[1646310180281,0.28673399,43575.0,43574.0,0.382206]
[1646310180830,0.0001955,43575.0,43574.0,0.18606582]
[1646310181227,0.28653849,43576.0,43574.0,0.18606582]
[1646310181427,0.28653849,43576.0,43574.0,0.18906582]
[1646310182130,0.28653849,43576.0,43575.0,0.41229618]
[1646310183028,0.28673397,43577.0,43575.0,0.41229618]
[1646310183328,0.28673397,43577.0,43575.0,0.41529618]
[1646310183528,0.28653849,43577.0,43575.0,0.41529618]
[1646310184376,0.00019548,43578.0,43575.0,0.41529618]
[1646310184377,0.28673397,43578.0,43575.0,0.41529618]
[1646310184582,0.28673397,43578.0,43575.0,0.41229618]
[1646310184788,0.28653849,43578.0,43575.0,0.41229618]
[1646310184982,0.47589467,43578.0,43575.0,0.41229618]
[1646310185179,0.28653849,43577.0,43575.0,0.41229618]
[1646310186078,0.18935618,43578.0,43575.0,0.41229618]
[1646310186079,0.28653849,43576.0,43575.0,0.41229618]
[1646310186277,0.28653849,43577.0,43575.0,0.41229618]
[1646310186879,0.18955166,43578.0,43575.0,0.41229618]
[1646310187082,0.18935618,43578.0,43575.0,0.41229618]
[1646310187280,0.18935618,43578.0,43575.0,0.41529618]
[1646310187883,0.00019548,43579.0,43575.0,0.41529618]
[1646310188328,0.33390725,43580.0,43575.0,0.41529618]
[1646310188530,0.00019548,43579.0,43575.0,0.41229618]
[1646310188931,0.15905989,43578.0,43575.0,0.41229618]
[1646310189329,0.15905989,43578.0,43575.0,0.41429618]
[1646310189829,0.00019548,43579.0,43575.0,0.41429618]
[1646310190628,0.00019548,43579.0,43575.0,0.41229618]
[1646310190829,0.33390725,43581.0,43575.0,0.41229618]
[1646310191029,0.00019548,43579.0,43575.0,0.41139608]
[1646310191429,0.00019548,43579.0,43575.0,0.41339608]
[1646310191631,0.00019548,43579.0,43578.0,0.05676508]
[1646310191884,0.28627911,43579.0,43578.0,0.19672008]
[1646310192489,0.2862739,43579.0,43578.0,0.139955]
[1646310192688,0.1565012,43580.0,43578.0,0.139955]
[1646310192890,0.28627416,43579.0,43578.0,0.139955]
[1646310193087,0.16699764,43580.0,43578.0,0.139955]
[1646310194387,0.43400842,43580.0,43578.0,0.139955]
[1646310194592,0.24881467,43579.0,43573.0,0.001]
[1646310194793,0.28629062,43575.0,43573.0,0.001]
[1646310194989,0.01421452,43574.0,43573.0,0.001]
[1646310195191,0.28629062,43574.0,43573.0,0.001]
[1646310195525,0.36307117,43577.0,43573.0,0.003]
[1646310195730,0.33410273,43576.0,43573.0,0.003]
[1646310195925,0.00019548,43576.0,43573.0,0.003]
[1646310196725,0.86307117,43577.0,43573.0,0.003]
[1646310196926,0.28630549,43574.0,43573.0,0.003]
[1646310197128,0.28630549,43574.0,43573.0,0.357663]
[1646310197326,0.28630549,43574.0,43573.0,0.358663]
[1646310198727,0.28630549,43575.0,43573.0,0.354663]
[1646310200180,1.28630549,43575.0,43573.0,0.354663]
[1646310202179,0.28630549,43574.0,43573.0,0.354663]
[1646310202779,1.28630549,43575.0,43573.0,0.354663]
[1646310203460,1.28630549,43575.0,43573.0,0.355663]
[1646310204662,1.28630549,43575.0,43573.0,0.354663]
[1646310205264,0.0121563,43574.0,43573.0,0.354663]
[1646310205463,0.0121563,43574.0,43573.0,0.355663]
[1646310207173,0.0121563,43574.0,43573.0,0.354663]
[1646310207375,0.0121563,43574.0,43573.0,0.355663]
[1646310208675,0.0121563,43574.0,43573.0,0.354663]
[1646310209179,0.0121563,43574.0,43573.0,0.26276681]
[1646310209373,0.0121563,43574.0,43573.0,0.26476681]
[1646310210622,0.0121563,43574.0,43573.0,0.26276681]
[1646310211424,0.0121563,43574.0,43573.0,0.26476681]
[1646310211823,0.22585654,43574.0,43573.0,0.26476681]
[1646310212024,0.21370024,43574.0,43573.0,0.26476681]
[1646310212325,1.0,43575.0,43573.0,0.26476681]
[1646310212725,1.0,43575.0,43573.0,0.26276681]
[1646310213427,1.0,43575.0,43573.0,0.26476681]
[1646310214690,1.0,43575.0,43573.0,0.26276681]
[1646310215490,1.0,43575.0,43573.0,0.26476681]
[1646310216592,1.0,43575.0,43573.0,0.26276681]
[1646310217393,1.0,43575.0,43573.0,0.26476681]
[1646310218626,1.0,43575.0,43573.0,0.26276681]
[1646310219427,1.0,43575.0,43573.0,0.26376681]
[1646310220729,1.0,43575.0,43573.0,0.26276681]
[1646310221529,1.0,43575.0,43573.0,0.26376681]
[1646310222017,0.28654258,43574.0,43573.0,0.26376681]
[1646310222718,0.28654258,43574.0,43573.0,0.26276681]
[1646310223316,1.28654258,43575.0,43573.0,0.26276681]
[1646310223526,1.49455227,43575.0,43573.0,0.26376681]
[1646310224117,1.28654258,43575.0,43573.0,0.26376681]
[1646310224718,1.28654258,43575.0,43573.0,0.26276681]
[1646310225122,1.28654258,43575.0,43574.0,0.56388363]
[1646310225320,0.49048589,43575.0,43574.0,0.74993963]
[1646310226732,0.49048589,43575.0,43574.0,0.44058759]
[1646310228232,0.49048589,43575.0,43574.0,0.186056]
[1646310228431,0.48474874,43575.0,43574.0,0.186056]
[1646310229475,0.48474874,43575.0,43574.0,0.189056]
[1646310230775,0.48474874,43575.0,43574.0,0.186056]
[1646310231576,0.48474874,43575.0,43574.0,0.189056]
[1646310232776,0.48474874,43575.0,43574.0,0.186056]
[1646310233028,0.48384354,43575.0,43574.0,0.186056]
[1646310233629,0.48384354,43575.0,43574.0,0.189056]
[1646310234934,0.48384354,43575.0,43574.0,0.186056]
[1646310238777,0.48384354,43575.0,43574.0,0.49849384]
[1646310239182,0.48384354,43575.0,43574.0,0.186056]
[1646310239578,0.48384354,43575.0,43574.0,0.190056]
[1646310240831,0.48384354,43575.0,43574.0,0.186056]
[1646310241530,0.48384354,43575.0,43574.0,0.190056]
[1646310241834,0.48384354,43575.0,43574.0,0.50249384]
[1646310242632,0.48384354,43575.0,43574.0,0.190056]
[1646310242932,0.48384354,43575.0,43574.0,0.186056]
[1646310244032,0.48384354,43575.0,43574.0,0.49849384]
[1646310244701,0.0293594,43577.0,43574.0,0.49849384]
[1646310244901,0.0293594,43577.0,43576.0,0.50915092]
[1646310244902,0.02916392,43577.0,43576.0,0.50915092]
[1646310245104,0.001,43591.0,43580.0,0.2]
[1646310245298,0.001,43591.0,43590.0,0.50909992]
[1646310245598,0.001,43591.0,43590.0,0.69956028]
[1646310246396,0.002,43596.0,43591.0,0.98665]
[1646310246598,0.002,43596.0,43595.0,0.05676508]
[1646310246800,0.002,43596.0,43595.0,0.24274508]
[1646310248740,0.002,43596.0,43595.0,0.24229198]
[1646310249545,0.002,43596.0,43595.0,0.24629198]
[1646310250145,0.002,43596.0,43595.0,1.26045488]
[1646310250345,0.002,43596.0,43595.0,0.24629198]
[1646310250546,0.002,43596.0,43595.0,0.94729198]
[1646310250744,0.002,43596.0,43595.0,0.94329198]
[1646310251345,0.002,43596.0,43595.0,1.25645488]
[1646310252187,0.002,43596.0,43595.0,0.55545488]
[1646310252585,0.002,43596.0,43595.0,0.24229198]
[1646310253586,0.002,43596.0,43595.0,0.24729198]
[1646310254892,0.002,43596.0,43595.0,0.24229198]
[1646310255528,0.002,43596.0,43595.0,0.24829198]
[1646310256329,0.002,43596.0,43595.0,0.56145488]
[1646310256535,0.00019471,43598.0,43597.0,1.986607]
[1646310256733,0.001,43599.0,43597.0,2.20321736]
[1646310257032,0.001,43599.0,43598.0,1.1770399]
[1646310257232,0.001,43599.0,43598.0,1.2231399]
[1646310257434,0.001,43599.0,43598.0,1.49438237]
[1646310257631,0.001,43599.0,43598.0,1.73996911]
[1646310258033,0.05585948,43600.0,43599.0,1.02301]
[1646310258232,9.48e-06,43600.0,43599.0,3.22406826]
[1646310259032,9.48e-06,43600.0,43599.0,3.33875426]
[1646310259278,9.48e-06,43600.0,43599.0,3.22406826]
[1646310260182,9.48e-06,43600.0,43599.0,3.72406826]
[1646310261385,9.48e-06,43600.0,43599.0,3.70105826]
[1646310261585,9.48e-06,43600.0,43599.0,3.76540326]
[1646310262385,9.48e-06,43600.0,43599.0,2.55805826]
[1646310262688,9.48e-06,43600.0,43599.0,2.55105826]
[1646310262885,9.48e-06,43600.0,43599.0,1.6975479]
[1646310263334,9.48e-06,43600.0,43599.0,1.1975479]
[1646310263937,9.48e-06,43600.0,43599.0,1.19984956]
[1646310264435,9.48e-06,43600.0,43599.0,0.88668666]
[1646310266135,9.48e-06,43600.0,43599.0,0.00230166]
[1646310266339,9.48e-06,43600.0,43599.0,0.35696766]
[1646310267394,9.48e-06,43600.0,43599.0,0.00230166]
[1646310267593,9.48e-06,43600.0,43599.0,0.00830166]
[1646310268196,0.01144948,43600.0,43599.0,0.00830166]
[1646310268896,0.01144948,43600.0,43599.0,0.00230166]
[1646310269094,0.01144948,43600.0,43598.0,0.00231614]
[1646310269294,0.354666,43599.0,43598.0,0.00231614]
[1646310269494,0.01144,43599.0,43598.0,0.00231614]
[1646310270543,0.00144,43599.0,43598.0,0.00231614]
[1646310270739,9.48e-06,43600.0,43598.0,0.00231614]
[1646310272940,0.10000948,43600.0,43598.0,0.00231614]
[1646310276182,0.354666,43599.0,43598.0,0.00231614]
[1646310276384,0.10000948,43600.0,43598.0,0.00231614]
[1646310279346,9.48e-06,43600.0,43598.0,0.00231614]
[1646310281547,9.48e-06,43600.0,43586.0,0.354666]
[1646310281548,1.00000948,43600.0,43586.0,0.354666]
[1646310281841,0.354666,43586.0,43585.0,0.009999]
[1646310282032,0.36825624,43586.0,43585.0,0.009999]
[1646310282430,0.36825624,43586.0,43585.0,1e-08]
[1646310283835,0.5,43586.0,43585.0,1e-08]
[1646310284839,0.00019472,43588.0,43585.0,1e-08]
[1646310285637,0.00019472,43588.0,43585.0,0.00100001]
[1646310285839,0.15880718,43588.0,43585.0,0.00100001]
[1646310286039,0.24398907,43588.0,43585.0,0.00100001]
[1646310286238,0.00019472,43589.0,43585.0,0.00100001]
[1646310286839,0.00019472,43589.0,43585.0,1e-08]
[1646310287039,0.59368801,43590.0,43585.0,1e-08]
[1646310287241,0.00019472,43589.0,43585.0,1e-08]
[1646310287644,0.00019472,43589.0,43585.0,0.00500001]
[1646310288045,0.00019472,43589.0,43585.0,0.005]
[1646310288243,0.5,43592.0,43587.0,0.28158651]
[1646310288447,0.5,43592.0,43591.0,0.10420498]
[1646310288647,0.00077877,43596.0,43594.0,0.354615]
[1646310288842,0.00077877,43596.0,43593.0,0.00922778]
[1646310288843,0.00077877,43596.0,43595.0,0.093984]
[1646310289504,0.2597213,43599.0,43596.0,0.354594]
[1646310289703,9.48e-06,43600.0,43596.0,0.354594]
[1646310289704,0.0001947,43598.0,43596.0,0.354594]
[1646310290704,9.48e-06,43600.0,43596.0,0.354594]
[1646310290905,0.25494509,43598.0,43596.0,0.354594]
[1646310291708,0.18162654,43597.0,43596.0,0.357594]
[1646310292308,0.62118119,43597.0,43596.0,0.357594]
[1646310292907,0.62118119,43597.0,43594.0,0.354666]
[1646310293149,0.40904123,43597.0,43594.0,0.354666]
[1646310293547,0.40904123,43597.0,43594.0,0.358666]
[1646310294948,0.40904123,43597.0,43594.0,0.354666]
[1646310295349,0.40904123,43597.0,43596.0,0.047831]
[1646310295350,0.22741469,43597.0,43596.0,0.047831]
[1646310295548,0.43755595,43597.0,43596.0,0.047831]
[1646310297702,0.43755595,43597.0,43596.0,0.050831]
[1646310297901,0.43755595,43597.0,43596.0,0.35762]
[1646310298300,0.22741469,43597.0,43596.0,0.35762]
[1646310298700,0.22741469,43597.0,43596.0,0.23878434]
[1646310299702,0.22741469,43597.0,43596.0,0.24078434]
[1646310300002,0.22741469,43597.0,43596.0,0.002]
[1646310300003,0.53863655,43597.0,43596.0,0.002]
[1646310300864,0.53863655,43597.0,43595.0,0.00267155]
[1646310301465,0.22741469,43597.0,43595.0,0.00267155]
[1646310301670,0.22741469,43597.0,43595.0,0.00367155]
[1646310302266,0.22741469,43597.0,43596.0,0.238819]
[1646310302867,0.22741469,43597.0,43595.0,0.00367155]
[1646310303070,0.22741469,43597.0,43595.0,0.00267155]
[1646310303770,0.22741469,43597.0,43595.0,0.00367155]
[1646310304172,0.22741469,43597.0,43596.0,0.23882]
[1646310304399,0.22741469,43597.0,43595.0,0.001]